fUSD/lending_fUSD_20250727
["ID","MTS","AMOUNT","RATE_DAILY","PERIOD"]
[375177840,1753578648443,-282.385004,0.0002,2]
[375177842,1753578648452,-268.54,0.0002,2]
[375177844,1753578648461,-268.54,0.0002,2]
[375177846,1753578648470,-151.0,0.0002,2]
[375177848,1753578648479,-168.0,0.0002001,2]
[375177850,1753578648489,-155.04,0.00020011,2]
[375177852,1753578648498,-5000.0,0.00020015,2]
[375177854,1753578648508,-171.8519697,0.00020076,2]
[375177856,1753578648517,-213.28963404,0.00020099,2]
[375177858,1753578648527,-500.0,0.00020099,2]
[375177860,1753578648536,-382.56171275,0.00020099,2]
[375177861,1753578648545,-500.0,0.00020099,2]
[375177863,1753578648555,-601.17500038,0.00020099,2]
[375177865,1753578648564,-336.92009889,0.00020099,2]
[375177867,1753578648574,-4836.41537031,0.000201,2]
[375177869,1753578648583,-500.0,0.000201,2]
[375177871,1753578648592,-503.99338767,0.000201,2]
[375177874,1753578648602,-500.0,0.000201,2]
[375177875,1753578648612,-500.0,0.000201,2]
[375177877,1753578648625,-151.0,0.000201,2]
[375177880,1753578648635,-200.102628,0.000201,2]
[375177882,1753578648644,-500.0,0.000201,2]
[375177883,1753578648654,-500.0,0.000201,2]
[375177885,1753578648664,-151.0,0.000201,2]
[375177887,1753578648673,-151.0,0.000201,2]
[375177890,1753578648683,-432.09194559,0.000201,2]
[375177892,1753578648692,-500.71525864,0.000201,2]
[375177894,1753578648703,-500.0,0.000201,2]
[375177896,1753578648713,-151.0,0.000201,2]
[375177898,1753578648723,-151.0,0.000201,2]
[375177900,1753578648732,-282.385004,0.000201,2]
[375177902,1753578648742,-282.385004,0.000201,2]
[375177904,1753578648751,-161.51060287,0.000201,2]
[375177906,1753578648761,-500.0,0.000201,2]
[375177907,1753578648770,-500.0,0.000201,2]
[375177910,1753578648780,-500.0,0.000201,2]
[375177912,1753578648791,-500.0,0.000201,2]
[375177914,1753578648803,-500.0,0.000201,2]
[375177916,1753578648812,-500.0,0.000201,2]
[375177917,1753578648822,-500.0,0.000201,2]
[375177918,1753578648832,-500.0,0.000201,2]
[375177919,1753578648843,-502.82554035,0.000201,2]
[375177920,1753578648853,-500.0,0.000201,2]
[375177921,1753578648862,-360.94666612,0.000201,2]
[375177922,1753578648872,-500.0,0.000201,2]
[375177923,1753578648881,-596.41430104,0.000201,2]
[375177924,1753578648891,-151.0,0.000201,2]
[375177925,1753578648900,-500.0,0.00020125,2]
[375177927,1753578648910,-150.0,0.00020131,2]
[375177929,1753578648920,-500.0,0.00020132,2]
[375177931,1753578648930,-200.0,0.00020132,2]
[375177963,1753578649225,-500.0,0.00020132,2]
[375177965,1753578649235,-500.0,0.00020132,2]
[375177967,1753578649245,-249.33901889,0.00020132,2]
[375177969,1753578649256,-99.26495363,0.00020132,2]
[375177973,1753578649284,-1472.73504637,0.00020132,2]
[375177975,1753578649294,-150.0,0.00020132,2]
[375177977,1753578649304,-500.0,0.00020132,2]
[375177979,1753578649314,-150.75945526,0.00020133,2]
[375177982,1753578649337,-0.24054474,0.00020133,2]
[375177984,1753578649347,-151.0,0.00020133,2]
[375177986,1753578649357,-151.0,0.00020133,2]
[375177988,1753578649367,-444.862957,0.00020133,2]
[375177990,1753578649376,-444.862957,0.00020133,2]
[375177992,1753578649385,-500.0,0.00020133,2]
[375177994,1753578649395,-151.0,0.00020141,2]
[375177996,1753578649405,-151.0,0.00020141,2]
[375177998,1753578649415,-151.0,0.00020141,2]
[375178000,1753578649425,-151.0,0.00020141,2]
[375178002,1753578649435,-151.0,0.00020141,2]
[375178005,1753578649445,-151.0,0.00020141,2]
[375178006,1753578649454,-302.715272,0.00020141,2]
[375178009,1753578649464,-302.715272,0.00020141,2]
[375178011,1753578649474,-151.0,0.00020141,2]
[375178013,1753578649484,-151.0,0.00020141,2]
[375178015,1753578649493,-151.0,0.00020141,2]
[375178017,1753578649503,-475.936114,0.00020141,2]
[375178019,1753578649513,-475.936114,0.00020141,2]
[375178021,1753578649523,-151.0,0.00020141,2]
[375178023,1753578649532,-151.0,0.00020141,2]
[375178024,1753578649541,-151.0,0.00020141,2]
[375178027,1753578649552,-151.0,0.00020141,2]
[375178028,1753578649561,-1566.472385,0.00020141,2]
[375178031,1753578649571,-763.12888426,0.00020141,2]
[375178034,1753578649596,-803.34350074,0.00020141,2]
[375178036,1753578649605,-151.0,0.00020141,2]
[375178038,1753578649615,-151.0,0.00020141,2]
[375178040,1753578649625,-330.677177,0.00020141,2]
[375178042,1753578649635,-330.677177,0.00020141,2]
[375178044,1753578649644,-151.0,0.00020141,2]
[375178046,1753578649654,-221.380646,0.00020141,2]
[375178048,1753578649663,-221.380646,0.00020141,2]
[375178050,1753578649673,-49.93025329,0.00020141,2]
[375178052,1753578649685,-101.06974671,0.00020141,2]
[375178054,1753578649694,-256.20401,0.00020141,2]
[375178056,1753578649704,-444.862957,0.00020141,2]
[375178058,1753578649713,-444.862957,0.00020141,2]
[375178060,1753578649723,-151.0,0.00020141,2]
[375178062,1753578649733,-151.0,0.00020141,2]
[375178065,1753578649742,-170.394869,0.00020141,2]
[375178067,1753578649757,-48.75546029,0.00020141,2]
[375178072,1753578649792,-121.63940871,0.00020141,2]
[375178074,1753578649803,-151.0,0.00020141,2]
[375178076,1753578649814,-500.0,0.0002015,2]
[375178078,1753578649824,-522.61993625,0.0002015,2]
[375178080,1753578649835,-158.40455281,0.00020161,2]
[375178082,1753578649846,-611.97654481,0.00020162,2]
[375178084,1753578649856,-171.8519697,0.00020172,2]
[375178086,1753578649867,-1107.28442862,0.00020182,2]
[375179009,1753578659298,508.0,0.00018557,2]
[375180045,1753578748968,249.22874,0.00018557,2]
[375180046,1753578918250,251.924721,0.00027397,120]
[375180047,1753579491730,157.09,0.00013699,2]
[375180049,1753579510146,7491.29544924,0.000154,2]
[375180050,1753579562839,1069.25065113,8e-05,2]
[375180052,1753579663309,180.0,0.00018714,7]
[375180055,1753579709381,508.0,0.00018517,2]
[375180056,1753579736886,839.96719532,0.00018177,2]
[375180057,1753579747109,188.93728249,0.00018177,2]
[375180058,1753579749145,754.99338082,0.00018177,2]
[375180071,1753579790836,8324.16,0.00018579,2]
[375180072,1753579791484,992.4,0.00018579,2]
[375180093,1753579832524,-200.0,0.00018692,2]
[375180094,1753579832534,-250.0,0.00018703,2]
[375180095,1753579832544,-250.0,0.00018714,2]
[375180096,1753579832554,-166.03,0.00018721,2]
[375180097,1753579832563,-3163.04,0.00018737,2]
[375180098,1753579832573,-492.77,0.00018815,2]
[375180099,1753579832582,-151.31,0.00018833,2]
[375180100,1753579832591,-209.50041626,0.00018852,2]
[375180101,1753579832601,-1063.99,0.00018934,2]
[375180102,1753579832610,-191.81,0.00018952,2]
[375180103,1753579832620,-167.84,0.0001899,2]
[375180104,1753579832629,-1200.0,0.00018999,2]
[375180105,1753579832638,-300.0,0.00018999,2]
[375180106,1753579832648,-27144.6067239,0.00019,2]
[375180107,1753579832657,-1000.0,0.00019008,2]
[375180108,1753579832667,-191.62,0.00019029,2]
[375180109,1753579832677,-353.07798644,0.00019092,2]
[375180110,1753579832686,-151.0,0.00019178,2]
[375180111,1753579832695,-1105.1655931,0.00019178,2]
[375180112,1753579832826,-112.9944069,0.00019178,2]
[375180115,1753579832837,-166.66,0.00019253,2]
[375180117,1753579832846,-151.0,0.00019439,2]
[375180119,1753579832856,-181.33470931,0.00019513,2]
[375180120,1753579832865,-262.5955246,0.00019553,2]
[375180122,1753579832874,-151.0,0.00019553,2]
[375180124,1753579832883,-144.68535919,0.00019553,2]
[375180127,1753579832895,-6.31464081,0.00019553,2]
[375180129,1753579832905,-151.0,0.00019553,2]
[375180131,1753579832914,-151.0,0.00019553,2]
[375180133,1753579832924,-11.7426456,0.00019553,2]
[375180138,1753579832941,-139.2573544,0.00019553,2]
[375180141,1753579832955,-530.14926362,0.00019554,2]
[375180144,1753579832967,-69.85073638,0.00019554,2]
[375180146,1753579832977,-600.0,0.00019554,2]
[375180148,1753579832986,-206.58,0.00019554,2]
[375180150,1753579832996,-212.98,0.00019573,2]
[375180152,1753579833006,-500.0,0.00019627,2]
[375180154,1753579833019,-500.0,0.00019627,2]
[375180156,1753579833029,-448.99822351,0.00019627,2]
[375180158,1753579833041,-500.0,0.00019627,2]
[375180160,1753579833051,-500.0,0.00019627,2]
[375180162,1753579833062,-211.53924826,0.00019627,2]
[375180164,1753579833072,-302.8,0.00019685,2]
[375180167,1753579833083,-150.0,0.00019701,2]
[375180168,1753579833092,-150.0,0.00019701,2]
[375180171,1753579833103,-150.0,0.00019701,2]
[375180173,1753579833113,-150.0,0.00019701,2]
[375180175,1753579833123,-780.387579,0.00019778,2]
[375180177,1753579833133,-150.0,0.00019805,2]
[375180179,1753579833143,-300.89,0.00019842,2]
[375180181,1753579833152,-191.81,0.00019899,2]
[375180183,1753579833162,-500.0,0.000199,7]
[375180185,1753579833171,-228.17646415,0.000199,2]
[375180187,1753579833180,-305.91,0.00019965,2]
[375180189,1753579833190,-1053.9646,0.00019976,2]
[375180191,1753579833200,-3869.13229632,0.00019976,2]
[375180193,1753579833210,-4651.43663,0.0001998,2]
[375180195,1753579833219,-151.0,0.00019985,2]
[375180197,1753579833229,-10295.77871498,0.00019985,2]
[375180199,1753579833239,-45782.6993195,0.0002,2]
[375180201,1753579833249,-6000.0,0.0002,2]
[375180203,1753579833262,-195.84529632,0.0002,5]
[375180205,1753579833272,-16164.22168846,0.0002,2]
[375180207,1753579833281,-50500.08672511,0.0002,4]
[375180209,1753579833291,-3950.0,0.0002,2]
[375180211,1753579833301,-807.64940319,0.0002,20]
[375180213,1753579833311,-1265.67233614,0.0002,2]
[375180215,1753579833321,-4047.66175652,0.0002,2]
[375180217,1753579833330,-2856.73786995,0.0002,7]
[375180219,1753579833340,-515.06239583,0.0002,7]
[375180221,1753579833350,-1021.44888183,0.0002,2]
[375180223,1753579833360,-55622.2903552,0.0002,2]
[375180225,1753579833370,-9083.21041576,0.0002001,2]
[375180227,1753579833379,-5009.527278,0.0002001,2]
[375180229,1753579833388,-5772.0,0.0002001,2]
[375180231,1753579833398,-2500.0,0.00020032,2]
[375180233,1753579833408,-1000.0,0.00020041,2]
[375180235,1753579833419,-150.0,0.00020042,2]
[375180237,1753579833436,-483.71376228,0.00020075,2]
[375180239,1753579833446,-1000.0,0.00020075,2]
[375180241,1753579833456,-157437.1656,0.00020076,2]
[375180243,1753579833465,-151.0,0.00020076,2]
[375180245,1753579833475,-151.0,0.00020076,2]
[375180247,1753579833485,-151.0,0.00020076,2]
[375180249,1753579833496,-350.64,0.00020089,2]
[375180251,1753579833506,-154.61166941,0.00020132,2]
[375180253,1753579833519,-150.0,0.00020132,2]
[375180255,1753579833529,-500.0,0.00020132,2]
[375180257,1753579833538,-500.0,0.00020132,2]
[375180259,1753579833548,-500.0,0.00020132,2]
[375180261,1753579833558,-500.0,0.00020132,2]
[375180263,1753579833568,-500.0,0.00020132,2]
[375180265,1753579833577,-500.0,0.00020132,2]
[375180267,1753579833587,-2481.0,0.00020132,2]
[375180269,1753579833597,-500.0,0.00020132,2]
[375180271,1753579833606,-150.0,0.00020132,2]
[375180273,1753579833616,-718.0,0.00020132,2]
[375180275,1753579833625,-210.83176602,0.00020141,2]
[375180277,1753579833635,-2374.92,0.0002016,2]
[375180279,1753579833645,-952.89,0.00020164,2]
[375180281,1753579833655,-985.48,0.00020164,2]
[375180283,1753579833665,-150.0,0.00020165,2]
[375180285,1753579833675,-4706.7556541,0.00020171,2]
[375180287,1753579833685,-56276.61403004,0.00020171,2]
[375180308,1753579834606,-38833.28830326,0.00020171,2]
[375180309,1753579834616,-151.0,0.00020171,2]
[375180310,1753579834626,-151.0,0.00020171,2]
[375180311,1753579834635,-151.772444,0.00020171,2]
[375180312,1753579834645,-152.944393,0.00020176,2]
[375180313,1753579834655,-151.0,0.00020176,2]
[375180314,1753579834664,-151.0,0.00020176,2]
[375180315,1753579834674,-151.0,0.00020176,2]
[375180316,1753579834683,-151.0,0.00020176,2]
[375180317,1753579834693,-3869.13229624,0.00020181,2]
[375180318,1753579834702,-277.44657827,0.00020182,2]
[375180319,1753579834712,-195.24297799,0.00020182,2]
[375180320,1753579834721,-2000.0,0.00020182,2]
[375180321,1753579834731,-200.0,0.00020182,2]
[375180322,1753579834740,-1000.0,0.00020182,2]
[375180323,1753579834749,-1000.0,0.00020182,2]
[375180324,1753579834759,-1000.0,0.00020182,2]
[375180325,1753579834769,-512.20558958,0.00020182,2]
[375180326,1753579834780,-151.0,0.00020185,2]
[375180327,1753579834789,-255.020886,0.00020185,2]
[375180328,1753579834799,-948.07941026,0.00020199,2]
[375180329,1753579834811,-358.00206372,0.00020199,2]
[375180330,1753579834830,-911.88949279,0.00020199,2]
[375180331,1753579834852,-2011.24903323,0.00020199,2]
[375180332,1753579834861,-150.0,0.00020199,7]
[375180333,1753579834871,-228.17646413,0.00020233,2]
[375180334,1753579834881,-155.57,0.00020251,2]
[375180335,1753579834890,-176.74,0.00020274,2]
[375180336,1753579834900,-571.34,0.00020301,2]
[375180337,1753579834909,-61.92450262,0.00020306,2]
[375180338,1753579834921,-106.07549738,0.00020306,2]
[375180339,1753579834931,-3303.92450262,0.00020339,2]
[375180340,1753579834943,-1696.07549738,0.00020339,2]
[375180341,1753579834953,-2374.87,0.0002036,2]
[375180342,1753579834962,-1721.16560248,0.00020374,2]
[375180343,1753579834972,-200.0,0.00020384,2]
[375180344,1753579834981,-150.0,0.00020385,7]
[375180345,1753579834991,-3869.13229624,0.00020387,2]
[375180346,1753579835000,-2720.0,0.00020404,2]
[375180347,1753579835010,-150.0,0.00020406,2]
[375180348,1753579835021,-500.0,0.00020406,2]
[375180349,1753579835031,-500.0,0.00020406,2]
[375180350,1753579835042,-500.0,0.00020406,2]
[375180351,1753579835053,-640.75486183,0.00020406,2]
[375180352,1753579835062,-500.0,0.00020406,2]
[375180353,1753579835072,-500.0,0.00020406,2]
[375180354,1753579835083,-2481.0,0.00020406,2]
[375180355,1753579835092,-500.0,0.00020406,2]
[375180356,1753579835102,-150.0,0.00020406,2]
[375180357,1753579835111,-718.0,0.00020406,2]
[375180358,1753579835122,-5000.0,0.00020422,2]
[375180359,1753579835131,-168.0,0.00020428,2]
[375180360,1753579835140,-2374.87,0.0002044,2]
[375180361,1753579835150,-4829.9155933,0.00020446,2]
[375180362,1753579835159,-3722.0842302,0.00020446,2]
[375180363,1753579835171,-1915.49389417,0.00020446,2]
[375180366,1753579838498,-150.0,0.00019753,7]
[375180367,1753579838510,-500.0,0.00019999,2]
[375180368,1753579838522,-496.41656057,0.00019999,2]
[375180369,1753579838533,-219.30218115,0.00019999,2]
[375180370,1753579838544,-705.71,0.00020007,2]
[375180371,1753579838554,-7509.29304451,0.00020446,2]
[375180543,1753579840552,-159.44900407,0.00019976,2]
[375180544,1753579840562,-150.0,0.00020253,7]
[375180545,1753579840572,-2912.43285284,0.00020446,2]
[375180546,1753579840583,-827.6,0.00020446,2]
[375180551,1753579840646,-80711.70404488,0.00020446,2]
[375180553,1753579840656,-151.0,0.00020458,2]
[375180556,1753579840665,-151.0,0.00020458,2]
[375180558,1753579840675,-151.0,0.00020458,2]
[375180560,1753579840684,-151.0,0.00020458,2]
[375180561,1753579840693,-151.0,0.00020458,2]
[375180564,1753579840703,-151.0,0.00020458,2]
[375180565,1753579840713,-211.90069,0.00020458,2]
[375180568,1753579840722,-211.90069,0.00020458,2]
[375180570,1753579840733,-231.220645,0.00020458,2]
[375180571,1753579840744,-159.300379,0.00020458,2]
[375180574,1753579840754,-151.0,0.00020458,2]
[375180576,1753579840767,-151.0,0.00020458,2]
[375180578,1753579840782,-151.0,0.00020458,2]
[375180580,1753579840791,-151.0,0.00020458,2]
[375180582,1753579840802,-151.0,0.00020458,2]
[375180584,1753579840812,-151.0,0.00020458,2]
[375180586,1753579840822,-151.0,0.00020458,2]
[375180588,1753579840832,-151.0,0.00020458,2]
[375180590,1753579840842,-151.0,0.00020458,2]
[375180592,1753579840851,-151.0,0.00020458,2]
[375180594,1753579840862,-9216.856,0.00020458,2]
[375180596,1753579840872,-160.0,0.00020458,2]
[375180598,1753579840881,-500.0,0.00020458,2]
[375180600,1753579840891,-500.0,0.00020458,2]
[375180602,1753579840900,-302.00000001,0.00020458,2]
[375180604,1753579840909,-500.0,0.00020458,2]
[375180606,1753579840919,-500.0,0.00020458,2]
[375180608,1753579840929,-220.51679913,0.00020458,2]
[375180610,1753579840938,-500.0,0.00020458,2]
[375180612,1753579840947,-500.0,0.00020458,2]
[375180614,1753579840957,-500.0,0.00020458,2]
[375180616,1753579840966,-500.0,0.00020458,2]
[375180618,1753579840976,-500.0,0.00020458,2]
[375180620,1753579840986,-600.0,0.00020458,2]
[375180622,1753579840996,-500.0,0.00020458,2]
[375180624,1753579841007,-500.0,0.00020458,2]
[375180626,1753579841017,-500.0,0.00020458,2]
[375180628,1753579841028,-500.0,0.00020458,2]
[375180630,1753579841045,-500.0,0.00020458,2]
[375180632,1753579841067,-151.0,0.00020458,2]
[375180634,1753579841087,-198.0,0.00020458,2]
[375180636,1753579841096,-248.71531821,0.00020458,2]
[375180638,1753579841106,-373.07297731,0.00020458,2]
[375180640,1753579841115,-500.0,0.00020458,2]
[375180642,1753579841125,-293.01039821,0.00020458,2]
[375180644,1753579841134,-300.0,0.00020458,2]
[375180646,1753579841144,-300.0,0.00020458,2]
[375180648,1753579841154,-300.0,0.00020458,2]
[375180650,1753579841163,-321.31936905,0.00020458,2]
[375180652,1753579841172,-151.0,0.00020458,2]
[375180654,1753579841182,-151.0,0.00020458,2]
[375180656,1753579841192,-1000.0,0.00020458,2]
[375180658,1753579841201,-1000.0,0.00020458,2]
[375180660,1753579841214,-1000.0,0.00020458,2]
[375180662,1753579841223,-1000.0,0.00020458,2]
[375180664,1753579841233,-1000.0,0.00020458,2]
[375180666,1753579841243,-1000.0,0.00020458,2]
[375180668,1753579841252,-563.65851983,0.00020458,2]
[375180670,1753579841262,-666.0,0.00020459,2]
[375180672,1753579841274,-151.0,0.00020459,2]
[375180674,1753579841283,-151.0,0.00020459,2]
[375180676,1753579841293,-151.0,0.00020459,2]
[375180678,1753579841302,-151.0,0.00020459,2]
[375180680,1753579841312,-151.0,0.00020459,2]
[375180682,1753579841321,-184.310016,0.00020459,2]
[375180684,1753579841331,-300.0,0.00020459,2]
[375180687,1753579841341,-151.0,0.00020459,2]
[375180689,1753579841350,-285.561668,0.00020459,2]
[375180690,1753579841361,-285.561668,0.00020459,2]
[375180693,1753579841371,-268.90995688,0.00020459,2]
[375180695,1753579841380,-236.5157772,0.00020459,2]
[375180696,1753579841390,-500.0,0.00020459,2]
[375180699,1753579841400,-625.63166372,0.00020459,2]
[375180700,1753579841409,-151.0,0.0002046,2]
[375180703,1753579841418,-151.0,0.0002046,2]
[375180705,1753579841428,-151.0,0.0002046,2]
[375180707,1753579841438,-151.0,0.0002046,2]
[375180709,1753579841447,-151.0,0.0002046,2]
[375180710,1753579841456,-151.0,0.0002046,2]
[375180712,1753579841466,-174.30374,0.0002046,2]
[375180714,1753579841475,-939.883431,0.0002046,2]
[375180716,1753579841485,-151.0,0.0002046,2]
[375180718,1753579841495,-151.0,0.0002046,2]
[375180721,1753579841504,-939.883431,0.0002046,2]
[375180722,1753579841514,-151.0,0.0002046,2]
[375180725,1753579841524,-151.0,0.0002046,2]
[375180727,1753579841535,-151.0,0.0002046,2]
[375180729,1753579841544,-151.0,0.0002046,2]
[375180731,1753579841555,-151.0,0.0002046,2]
[375180733,1753579841564,-151.0,0.0002046,2]
[375180735,1753579841573,-154.065588,0.0002046,2]
[375180737,1753579841582,-151.0,0.0002046,2]
[375180739,1753579841592,-151.0,0.0002046,2]
[375180741,1753579841601,-151.0,0.0002046,2]
[375180743,1753579841612,-151.0,0.0002046,2]
[375180745,1753579841621,-151.0,0.0002046,2]
[375180747,1753579841630,-151.0,0.0002046,2]
[375180749,1753579841639,-177.945183,0.0002046,2]
[375180750,1753579841649,-177.945183,0.0002046,2]
[375180753,1753579841658,-177.945183,0.0002046,2]
[375180754,1753579841667,-184.097629,0.0002046,2]
[375180757,1753579841677,-184.097629,0.0002046,2]
[375180759,1753579841687,-177.945183,0.0002046,2]
[375180761,1753579841696,-177.945183,0.0002046,2]
[375180763,1753579841706,-177.945183,0.0002046,2]
[375180765,1753579841716,-151.0,0.0002046,2]
[375180767,1753579841725,-151.0,0.0002046,2]
[375180768,1753579841734,-184.097629,0.0002046,2]
[375180771,1753579841744,-184.097629,0.0002046,2]
[375180773,1753579841753,-151.0,0.0002046,2]
[375180775,1753579841762,-151.0,0.0002046,2]
[375180777,1753579841777,-151.0,0.0002046,2]
[375180779,1753579841786,-151.0,0.0002046,2]
[375180781,1753579841796,-151.0,0.0002046,2]
[375180783,1753579841805,-151.0,0.0002046,2]
[375180785,1753579841815,-151.0,0.0002046,2]
[375180786,1753579841824,-151.0,0.0002046,2]
[375180788,1753579841834,-151.0,0.0002046,2]
[375180791,1753579841844,-151.0,0.0002046,2]
[375180792,1753579841853,-151.0,0.0002046,2]
[375180795,1753579841863,-246.589113,0.0002046,2]
[375180797,1753579841873,-151.0,0.0002046,2]
[375180799,1753579841883,-151.0,0.0002046,2]
[375180801,1753579841894,-151.0,0.0002046,2]
[375180803,1753579841903,-151.0,0.0002046,2]
[375180805,1753579841913,-151.0,0.0002046,2]
[375180806,1753579841923,-152.709935,0.0002046,2]
[375180809,1753579841932,-151.0,0.0002046,2]
[375180839,1753579842209,-151.0,0.0002046,2]
[375180841,1753579842219,-151.0,0.0002046,2]
[375180843,1753579842233,-151.0,0.0002046,2]
[375180845,1753579842242,-151.0,0.0002046,2]
[375180847,1753579842252,-151.0,0.0002046,2]
[375180849,1753579842261,-151.0,0.0002046,2]
[375180851,1753579842273,-151.0,0.0002046,2]
[375180853,1753579842283,-151.0,0.0002046,2]
[375180855,1753579842292,-285.561668,0.0002046,2]
[375180857,1753579842302,-285.561668,0.0002046,2]
[375180859,1753579842311,-285.561668,0.0002046,2]
[375180861,1753579842321,-285.561668,0.0002046,2]
[375180863,1753579842330,-151.0,0.0002046,2]
[375180865,1753579842339,-151.0,0.0002046,2]
[375180867,1753579842349,-268.608493,0.0002046,2]
[375180869,1753579842358,-151.0,0.00020474,2]
[375180871,1753579842369,-151.0,0.00020474,2]
[375180873,1753579842378,-151.0,0.00020474,2]
[375180875,1753579842388,-151.0,0.00020474,2]
[375180877,1753579842398,-151.0,0.00020474,2]
[375180879,1753579842407,-151.0,0.00020474,2]
[375180881,1753579842416,-151.0,0.00020474,2]
[375180882,1753579842425,-151.0,0.00020474,2]
[375180884,1753579842435,-151.0,0.00020474,2]
[375180886,1753579842444,-151.0,0.00020474,2]
[375180888,1753579842454,-160.055708,0.00020474,2]
[375180890,1753579842463,-151.0,0.00020474,2]
[375180892,1753579842473,-153.054799,0.00020474,2]
[375180893,1753579842482,-151.0,0.00020474,2]
[375180895,1753579842491,-151.0,0.00020474,2]
[375180897,1753579842500,-151.0,0.00020474,2]
[375180899,1753579842510,-151.0,0.00020474,2]
[375180901,1753579842521,-211.90069,0.00020474,2]
[375180903,1753579842531,-211.90069,0.00020474,2]
[375180905,1753579842540,-151.0,0.00020474,2]
[375180907,1753579842549,-151.0,0.00020474,2]
[375180908,1753579842558,-939.883431,0.00020474,2]
[375180910,1753579842568,-939.883431,0.00020474,2]
[375180912,1753579842577,-150.0,0.00020484,7]
[375180914,1753579842587,-150.0,0.00020485,7]
[375180916,1753579842596,-150.0,0.00020485,7]
[375180918,1753579842606,-150.0,0.00020486,7]
[375180919,1753579842615,-4953.0755324,0.00020487,2]
[375180921,1753579842624,-100087.3137999,0.00020487,2]
[375180923,1753579842634,-151.0,0.00020488,2]
[375180925,1753579842642,-152.143363,0.00020488,2]
[375180927,1753579842652,-151.0,0.00020488,2]
[375180929,1753579842661,-151.0,0.00020488,2]
[375180931,1753579842671,-151.0,0.00020488,2]
[375180933,1753579842682,-241.702222,0.00020488,2]
[375180934,1753579842692,-151.0,0.00020488,2]
[375180936,1753579842702,-151.0,0.00020488,2]
[375180938,1753579842712,-230.450857,0.00020488,2]
[375180940,1753579842722,-151.0,0.00020488,2]
[375180942,1753579842732,-151.0,0.00020488,2]
[375180944,1753579842741,-151.0,0.00020488,2]
[375180946,1753579842751,-151.0,0.00020488,2]
[375180948,1753579842760,-153.354533,0.00020488,2]
[375180949,1753579842772,-211.90069,0.00020488,2]
[375180951,1753579842782,-211.90069,0.00020488,2]
[375180953,1753579842791,-4749.07241298,0.000205,2]
[375180955,1753579842801,-500.0,0.000205,2]
[375180957,1753579842811,-150.0,0.000205,7]
[375180959,1753579842821,-2000.0,0.00020501,2]
[375180961,1753579842831,-378.87994108,0.0002052,2]
[375180963,1753579842841,-500.0,0.0002052,2]
[375180965,1753579842850,-500.0,0.0002052,2]
[375180966,1753579842860,-500.0,0.0002052,2]
[375180968,1753579842869,-500.0,0.0002052,2]
[375180970,1753579842879,-500.0,0.0002052,2]
[375180972,1753579842889,-500.0,0.0002052,2]
[375180974,1753579842898,-500.0,0.0002052,2]
[375180976,1753579842907,-500.0,0.0002052,2]
[375180978,1753579842917,-243.89883721,0.0002052,2]
[375180980,1753579842927,-500.0,0.0002052,2]
[375180982,1753579842936,-2000.0,0.00020537,3]
[375180984,1753579842946,-2500.0,0.00020537,2]
[375180986,1753579842956,-300.0,0.00020537,2]
[375180988,1753579842966,-168.0,0.0002054,2]